[Event "POL-chT 2nd League Juniors 2020"]
[Site "Sypniewo"]
[Date "2020.10.25"]
[Round "4.9"]
[White "Jendrowiak, Maciej"]
[Black "Bochenek, Ryszard"]
[Result "1-0"]
[ECO "A52"]
[WhiteElo "1382"]
[BlackElo "1445"]
[Annotator "NA RC"]
[PlyCount "81"]
[EventDate "2020.10.23"]
[EventType "team-tourn"]
[EventCountry "POL"]
[SourceTitle "playchess.com"]
[Source "ChessBase"]
[SourceQuality "1"]
[TimeControl "5400+30"]

1. d4 {[%emt 0:00:02]} Nf6 {[%emt 0:00:00]} 2. c4 {[%emt 0:00:30]} e5 {[%emt 0:00:00]} 3. dxe5 {[%emt 0:01:26]} Ng4 {[%emt 0:00:18]} 4. Nf3 {[%emt 0:00:23]} Bc5 {[%emt 0:00:12]} 5. e3 {[%emt 0:00:16]} Nc6 {[%emt 0:00:10]} 6. Nc3 {[%emt 0:01:24]} Ngxe5 {[%emt 0:00:19]} 7. Nxe5 {[%emt 0:01:18]} Nxe5 {[%emt 0:00:08]} 8. Be2 {[%emt 0:01:16]} d6 {[%emt 0:00:26]} 9. O-O {[%emt 0:02:05]} O-O {[%emt 0:00:07]} 10. b3 {[%emt 0:01:46]} Be6 {[%emt 0:00:58]} 11. Bb2 {[%emt 0:01:52]} f5 {[%emt 0:06:09]} 12. Nd5 {[%emt 0:02:43]} a5 {[%emt 0:02:28]} 13. Nf4 {[%emt 0:01:50]} Bf7 {[%emt 0:07:24]} 14. Qc2 {[%emt 0:03:28]} Qf6 {[%emt 0:10:52]} 15. Nd3 {[%emt 0:02:21]} Qe7 {[%emt 0:06:33]} 16. Nxc5 {[%emt 0:01:29]} dxc5 {[%emt 0:00:53]} 17. Qxf5 {[%emt 0:01:25]} Nc6 {[%emt 0:01:16]} 18. Qg4 {[%emt 0:02:15]} Bg6 {[%emt 0:00:59]} 19. Bf3 {[%emt 0:01:06]} Nb4 {[%emt 0:02:43]} 20. Bxb7 {[%emt 0:03:22]} Rad8 {[%emt 0:00:27]} 21. Bc3 {[%emt 0:04:54]} Nc2 {[%emt 0:03:37]} 22. Rac1 {[%emt 0:00:51]} Nxe3 {[%emt 0:03:06]} 23. Rfe1 {[%emt 0:08:35]} Nxg4 {[%emt 0:23:46]} 24. Rxe7 {[%emt 0:00:13]} Nf6 {[%emt 0:01:50]} 25. Rxc7 {[%emt 0:02:33]} Rf7 {[%emt 0:04:18]} 26. Rxf7 {[%emt 0:01:46]} Kxf7 {[%emt 0:00:10]} 27. f3 {[%emt 0:00:53]} Rd6 {[%emt 0:02:21]} 28. Bxa5 {[%emt 0:00:45]} Rd7 {[%emt 0:00:42]} 29. Bc8 {[%emt 0:06:34]} Ra7 {[%emt 0:02:16]} 30. Bb6 {[%emt 0:00:15]} Ra8 {[%emt 0:00:44]} 31. Bh3 {[%emt 0:00:36]} Rxa2 {[%emt 0:00:29]} 32. Bxc5 {[%emt 0:00:05]} Nh5 {[%emt 0:01:18]} 33. Bd6 {[%emt 0:01:00]} Rd2 {[%emt 0:02:36]} 34. c5 {[%emt 0:00:54]} Bd3 {[%emt 0:02:03]} 35. c6 {[%emt 0:03:22]} Ba6 {[%emt 0:01:06]} 36. Ra1 {[%emt 0:03:08]} Rxd6 {[%emt 0:01:01]} 37. Rxa6 {[%emt 0:00:07]} Nf4 {[%emt 0:00:06]} 38. Ra7+ {[%emt 0:04:24]} Kf6 {[%emt 0:00:39]} 39. Bd7 {[%emt 0:06:20]} Nd3 {[%emt 0:00:45]} 40. c7 {[%emt 0:01:44]} Rxd7 {[%emt 0:00:15]} 41. Ra6+ {[%emt 0:00:41]} 1-0

[Event "POL-chT 2nd League Juniors 2020"]
[Site "Sypniewo"]
[Date "2020.10.25"]
[Round "4.9"]
[White "Marek, Grzegorz"]
[Black "Trzebinski, Patryk"]
[Result "0-1"]
[ECO "B01"]
[WhiteElo "1313"]
[BlackElo "1837"]
[Annotator "NA RC"]
[PlyCount "142"]
[EventDate "2020.10.23"]
[EventType "team-tourn"]
[EventCountry "POL"]
[SourceTitle "playchess.com"]
[Source "ChessBase"]
[SourceQuality "1"]
[TimeControl "5400+30"]

{[%evp 28,136,52,32,35,32767,32767,31,32767,106,111,32767,32767,32767,110,120,116,112,205,8,14,2,0,32767,32767,0,0,0,0,0,32767,-129,-115,-131,-131,-121,-121,-185,-149,-179,-223,-191,-206,-473,-333,-453,-979,-513,-387,-272,-2935,-688,-805,-673,-777,-725,-592,32767,32767,32767,32767,32767,32767,32767,32767,32767,32767,32767,32767,32767,32767,32767,32767,32767,32767,32767,32767,-1752,-1137,-29983,-29984,-27999,-6326,-4425,-27999,-1824,32767,-27999,32767,32767,-27998,-5632,-29956,-29970,-29971,-29972,-29974,-29973,-29974,-29975,32767,-29963,-29979,-29979,-29981,-29982,-29978,-29982,-29984,-29978,-29982]} 1. e4 {[%emt 0:00:00]} d5 {[%emt 0:00:00]} 2. exd5 {[%emt 0:00:00]} Nf6 {[%emt 0:00:07]} 3. Nf3 {[%emt 0:00:20]} Nxd5 {[%emt 0:00:05]} 4. d4 {[%emt 0:00:23]} Bg4 {[%emt 0:00:03]} 5. c4 {[%emt 0:00:19]} Nb6 {[%emt 0:00:02]} 6. c5 {[%emt 0:00:21]} N6d7 {[%emt 0:00:26]} 7. Bc4 {[%emt 0:00:56]} e6 {[%emt 0:00:19]} 8. O-O {[%emt 0:00:54] B01: Scandinavian Defence.} Be7 {[%emt 0:00:17]} 9. Nc3 {[%emt 0:01:43]} O-O {[%emt 0:00:34]} 10. h3 {[%emt 0:04:34]} Bxf3 {[%emt 0:03:12]} 11. Qxf3 {[%emt 0:00:38]} Nc6 {[%emt 0:00:59]} 12. Be3 {[%emt 0:00:35]} e5 {[%emt 0:06:49]} 13. dxe5 {[%emt 0:29:08]} Ncxe5 14. Qe2 {[%emt 0:03:55]} c6 {[%emt 0:05:05] [#]} 15. Rad1 $146 {[%emt 0:05:48]} ({Predecessor:} 15. b4 Nxc4 16. Qxc4 Bg5 17. Rfe1 Bxe3 18. Rxe3 Nf6 19. Rd1 Qc7 20. Qe2 Rae8 21. Re1 Rxe3 22. Qxe3 h6 23. Rd1 Re8 24. Qd4 Qe5 25. Qxe5 Rxe5 26. Rd8+ {½-½ (26) Short,D-Colucci,M CServe email 1993}) 15... Qa5 {[%emt 0:04:13]} 16. a3 {[%emt 0:07:24]} Nxc4 {[%emt 0:02:39]} 17. Qxc4 {[%emt 0:02:29]} Nxc5 {[%emt 0:00:31]} 18. b4 {[%emt 0:00:55]} Qa6 {[%emt 0:00:11]} 19. Qxa6 {[%emt 0:02:26]} Nxa6 {[%emt 0:00:08]} 20. Rd7 {[%emt 0:00:17]} Bf6 {[%emt 0:00:56]} 21. Ne4 {[%emt 0:01:49]} Bb2 {[%emt 0:01:01]} 22. Rxb7 {[%emt 0:01:19]} f5 {[%emt 0:05:40]} (22... Rfd8 $16) 23. Nc5 $2 {[%emt 0:03:02]} (23. Nd6 $18) 23... Nxc5 $1 {[%emt 0:05:18]} 24. Bxc5 {[%emt 0:00:12]} Rf7 {[%emt 0:00:30]} 25. Rxf7 {[%emt 0:01:10]} Kxf7 26. Rd1 {[%emt 0:00:56]} Bxa3 {[%emt 0:01:33]} 27. Rd7+ {[%emt 0:01:49]} Ke6 {[%emt 0:02:16]} 28. Rd6+ {[%emt 0:00:50]} ({Don't blunder} 28. Rxg7 $2 a5 $19) 28... Ke5 {[%emt 0:00:24]} 29. Rxc6 {[%emt 0:00:26]} (29. g3 $11 g5 30. Rd3) 29... a5 {[%emt 0:01:32]} 30. b5 {[%emt 0:05:32] [#]} Bxc5 $1 {[%emt 0:00:21]} 31. Rxc5+ {[%emt 0:00:11] [#]} Kd6 $1 {[%emt 0:00:24]} 32. Rc1 {[%emt 0:00:40] [#]} Rb8 $1 {[%emt 0:00:30]} 33. Kf1 {[%emt 0:00:59]} Rxb5 {[%emt 0:00:08]} 34. Ke2 {[%emt 0:05:36]} a4 {[%emt 0:03:03]} 35. f4 $2 {[%emt 0:03:40]} (35. Ra1 Rb4 36. Kd2) 35... Kd5 {[%emt 0:02:37]} 36. g4 {[%emt 0:07:16]} fxg4 {[%emt 0:02:40]} 37. hxg4 {[%emt 0:00:13]} Rb2+ {[%emt 0:00:18]} 38. Kd3 {[%emt 0:00:51]} a3 {[%emt 0:00:34]} 39. g5 $2 {[%emt 0:03:13]} (39. Re1 Rf2 40. Re5+ Kc6 41. Ke3) 39... a2 {[%emt 0:00:10]} 40. Ra1 {[%emt 0:00:13]} Rh2 {[%emt 0:01:27]} 41. Re1 {[%emt 0:03:26]} Kc5 {[%emt 0:07:24]} 42. Kc3 {[%emt 0:02:05]} Rf2 {[%emt 0:00:56]} 43. Kb3 {[%emt 0:00:43]} Kd4 {[%emt 0:00:41]} 44. f5 {[%emt 0:00:42]} Rxf5 {[%emt 0:00:29]} 45. g6 {[%emt 0:00:50]} h6 {[%emt 0:02:11]} 46. Kxa2 {[%emt 0:00:12]} Rf6 {[%emt 0:00:58]} 47. Kb2 {[%emt 0:01:13]} Rxg6 {[%emt 0:00:09]} 48. Kc2 {[%emt 0:00:08]} Rg2+ {[%emt 0:00:07]} 49. Kd1 {[%emt 0:00:12]} h5 {[%emt 0:00:39]} 50. Rh1 {[%emt 0:00:17]} g6 {[%emt 0:00:07]} 51. Ke1 {[%emt 0:00:05]} Ke3 {[%emt 0:00:12]} 52. Kf1 {[%emt 0:00:25]} Kf3 {[%emt 0:00:54]} (52... Rg3 $142 53. Rh4 Kf3) 53. Rh4 {[%emt 0:01:22]} Kg3 {[%emt 0:00:38]} 54. Ra4 {[%emt 0:00:25]} Rf2+ {[%emt 0:00:09]} (54... g5 $142 55. Ra7 h4 56. Rh7 h3 57. Rh6 Kh2 58. Rc6 g4 59. Ke1 Ra2 60. Kd1 g3 61. Rc8 g2 62. Rc2 Rxc2 63. Kxc2 g1=Q 64. Kd2 Qd4+ 65. Kc2 Kg3 66. Kb3 h2 67. Kc2 h1=Q 68. Kb3 Qb7+ 69. Kc2 Qbb2#) 55. Kg1 {[%emt 0:00:27]} h4 {[%emt 0:02:51]} 56. Ra5 {[%emt 0:00:46]} Rf4 {[%emt 0:01:46]} 57. Ra3+ {[%emt 0:00:33]} Kg4 {[%emt 0:00:09]} 58. Kg2 {[%emt 0:00:16] [#]} h3+ $1 {[%emt 0:00:17]} 59. Kh2 {[%emt 0:01:27]} Rf2+ {[%emt 0:00:19]} 60. Kg1 {[%emt 0:00:17]} Rf3 {[%emt 0:00:06]} 61. Ra6 {[%emt 0:00:50]} g5 {[%emt 0:00:20]} 62. Ra5 {[%emt 0:00:21]} Rf5 {[%emt 0:00:35]} 63. Ra3 {[%emt 0:00:22]} Rf3 {[%emt 0:00:40]} 64. Ra5 {[%emt 0:00:26]} Kh4 {[%emt 0:00:29]} 65. Ra8 {[%emt 0:00:48]} g4 {[%emt 0:00:17]} 66. Ra1 {[%emt 0:00:48]} Kg3 {[%emt 0:00:34]} 67. Kh1 {[%emt 0:00:13]} Rd3 {[%emt 0:00:47]} 68. Kg1 {[%emt 0:00:28]} Kf3 {[%emt 0:00:06]} 69. Ra8 {[%emt 0:00:44]} Rd1+ {[%emt 0:00:11]} 70. Kh2 {[%emt 0:00:07]} g3+ {[%emt 0:00:01]} 71. Kxh3 {[%emt 0:00:12]} Rh1# 0-1

[Event "POL-chT 2nd League Juniors 2020"]
[Site "Sypniewo"]
[Date "2020.10.25"]
[Round "4.10"]
[White "Malinowski, Szymon"]
[Black "Wilgosz, Szczepan"]
[Result "0-1"]
[ECO "A48"]
[WhiteElo "1740"]
[BlackElo "1371"]
[Annotator "NA RC"]
[PlyCount "56"]
[EventDate "2020.10.23"]
[EventType "team-tourn"]
[EventCountry "POL"]
[SourceTitle "playchess.com"]
[Source "ChessBase"]
[SourceQuality "1"]
[TimeControl "5400+30"]

1. d4 {[%emt 0:00:00]} Nf6 {[%emt 0:00:00]} 2. Nf3 {[%emt 0:00:07]} g6 {[%emt 0:00:00]} 3. Bg5 {[%emt 0:00:08]} Bg7 {[%emt 0:00:22]} 4. Nbd2 {[%emt 0:00:09]} d5 {[%emt 0:00:44]} 5. e3 {[%emt 0:00:11]} O-O {[%emt 0:00:18]} 6. Bd3 {[%emt 0:00:06]} c5 {[%emt 0:01:19]} 7. c3 {[%emt 0:00:24]} Nc6 {[%emt 0:00:18]} 8. O-O {[%emt 0:00:17]} b6 {[%emt 0:00:49]} 9. a3 {[%emt 0:19:32]} Bb7 {[%emt 0:00:36]} 10. b4 {[%emt 0:00:34]} c4 {[%emt 0:01:40]} 11. Bc2 {[%emt 0:00:12]} b5 12. Ne1 {[%emt 0:08:11]} Qc7 {[%emt 0:02:49]} 13. f4 {[%emt 0:01:00]} a5 {[%emt 0:02:31]} 14. Bxf6 {[%emt 0:06:41]} Bxf6 {[%emt 0:00:25]} 15. Nef3 {[%emt 0:00:58]} Ra7 {[%emt 0:02:11]} 16. h4 {[%emt 0:03:03]} Rfa8 {[%emt 0:03:21]} 17. Rb1 {[%emt 0:00:18]} axb4 {[%emt 0:05:08]} 18. axb4 {[%emt 0:02:02]} Ra3 {[%emt 0:00:56]} 19. e4 {[%emt 0:01:06]} Rxc3 {[%emt 0:04:41]} 20. e5 {[%emt 0:00:06]} Bg7 {[%emt 0:04:02]} 21. h5 {[%emt 0:01:26]} Ra2 {[%emt 0:02:19]} 22. hxg6 {[%emt 0:05:55]} Rcxc2 {[%emt 0:06:55]} 23. gxh7+ {[%emt 0:06:05]} Kh8 {[%emt 0:04:10]} 24. Rf2 {[%emt 0:08:06]} c3 {[%emt 0:05:13]} 25. Ng5 {[%emt 0:00:56]} cxd2 {[%emt 0:08:46]} 26. Qh5 {[%emt 0:00:21]} Nd8 {[%emt 0:13:12]} 27. Nxf7+ {[%emt 0:04:47]} Nxf7 {[%emt 0:00:05]} 28. Qxf7 {[%emt 0:00:06]} Qc8 {[%emt 0:08:18]} 0-1

[Event "POL-chT 2nd League Juniors 2020"]
[Site "Sypniewo"]
[Date "2020.10.25"]
[Round "4.10"]
[White "Suszczynski, Dominik"]
[Black "Rzepka, Marcin"]
[Result "0-1"]
[ECO "A10"]
[WhiteElo "1241"]
[BlackElo "1294"]
[Annotator "NA RC"]
[PlyCount "70"]
[EventDate "2020.10.23"]
[EventType "team-tourn"]
[EventCountry "POL"]
[SourceTitle "playchess.com"]
[Source "ChessBase"]
[SourceQuality "1"]
[TimeControl "5400+30"]

1. c4 {[%emt 0:00:00]} f5 {[%emt 0:00:00]} 2. Nc3 {[%emt 0:00:13]} Nf6 {[%emt 0:00:37]} 3. Nf3 {[%emt 0:01:40]} d6 {[%emt 0:00:59]} 4. d4 {[%emt 0:01:47]} g6 {[%emt 0:02:43]} 5. e3 {[%emt 0:04:24]} Bg7 {[%emt 0:02:29]} 6. Be2 {[%emt 0:02:07]} O-O {[%emt 0:01:17]} 7. O-O {[%emt 0:02:14]} Nc6 {[%emt 0:00:58]} 8. a3 {[%emt 0:05:45]} e5 {[%emt 0:02:57]} 9. d5 {[%emt 0:04:46]} Ne7 {[%emt 0:00:18]} 10. Qc2 {[%emt 0:03:40]} h6 {[%emt 0:02:03]} 11. b4 {[%emt 0:07:35]} g5 {[%emt 0:02:16]} 12. Nd2 {[%emt 0:01:53]} Ng6 {[%emt 0:05:42]} 13. Bb2 {[%emt 0:09:45]} h5 {[%emt 0:09:41]} 14. f3 {[%emt 0:09:44]} g4 {[%emt 0:24:33]} 15. f4 {[%emt 0:03:20]} h4 {[%emt 0:05:00]} 16. Rac1 {[%emt 0:07:30]} Qe8 {[%emt 0:08:41]} 17. Bd3 {[%emt 0:04:46]} e4 {[%emt 0:01:39]} 18. Be2 {[%emt 0:00:05]} Ne7 {[%emt 0:04:53]} 19. Nb5 {[%emt 0:01:37]} Qd8 {[%emt 0:02:11]} 20. Nd4 {[%emt 0:02:24]} Nh5 {[%emt 0:09:54]} 21. N2b3 {[%emt 0:04:54]} Ng6 {[%emt 0:02:14]} 22. a4 {[%emt 0:05:30]} h3 {[%emt 0:01:45]} 23. g3 {[%emt 0:00:48]} Nh4 24. gxh4 {[%emt 0:01:29]} Qxh4 {[%emt 0:04:24]} 25. Bd1 {[%emt 0:03:45]} Rf6 {[%emt 0:03:02]} 26. Qf2 {[%emt 0:06:43]} g3 {[%emt 0:00:33]} 27. hxg3 {[%emt 0:00:01]} Nxg3 {[%emt 0:00:39]} 28. Nf3 {[%emt 0:01:55]} h2+ {[%emt 0:01:57]} 29. Nxh2 {[%emt 0:01:39]} Rg6 {[%emt 0:00:10]} 30. Bg4 {[%emt 0:01:43]} Rxg4 {[%emt 0:00:25]} 31. Qg2 {[%emt 0:01:04]} Ne2+ {[%emt 0:00:14]} 32. Kh1 {[%emt 0:00:02]} Rxg2 {[%emt 0:00:07]} 33. Kxg2 {[%emt 0:00:05]} Nxc1 {[%emt 0:00:25]} 34. Bxc1 {[%emt 0:00:19]} Bd7 {[%emt 0:00:30]} 35. Rh1 {[%emt 0:00:48]} Qf6 {[%emt 0:00:25]} 0-1

[Event "POL-chT 2nd League Juniors 2020"]
[Site "Sypniewo"]
[Date "2020.10.25"]
[Round "4.11"]
[White "Seemann, Pola"]
[Black "Wasala, Wiktoria"]
[Result "1/2-1/2"]
[ECO "B03"]
[WhiteElo "1566"]
[BlackElo "1458"]
[Annotator "NA RC"]
[PlyCount "92"]
[EventDate "2020.10.23"]
[EventType "team-tourn"]
[EventCountry "POL"]
[SourceTitle "playchess.com"]
[Source "ChessBase"]
[SourceQuality "1"]
[TimeControl "5400+30"]

1. e4 {[%emt 0:00:00]} Nf6 {[%emt 0:00:00]} 2. e5 {[%emt 0:00:00]} Nd5 {[%emt 0:00:00]} 3. c4 {[%emt 0:00:00]} Nb6 {[%emt 0:00:00]} 4. d4 {[%emt 0:00:00]} d6 {[%emt 0:00:00]} 5. exd6 {[%emt 0:00:00]} exd6 {[%emt 0:00:00]} 6. Nc3 {[%emt 0:00:09]} Be7 {[%emt 0:00:04]} 7. Be3 {[%emt 0:00:06]} O-O {[%emt 0:00:24]} 8. Qf3 {[%emt 0:00:07]} Bg5 {[%emt 0:04:34]} 9. O-O-O {[%emt 0:03:37]} Nc6 {[%emt 0:02:31]} 10. h4 {[%emt 0:00:11]} Bxe3+ {[%emt 0:05:36]} 11. Qxe3 {[%emt 0:00:11]} Bf5 {[%emt 0:02:46]} 12. Qf4 {[%emt 0:05:23]} Qf6 {[%emt 0:12:13]} 13. g4 {[%emt 0:07:51]} Bd7 {[%emt 0:01:05]} 14. Qxf6 {[%emt 0:00:36]} gxf6 {[%emt 0:00:06]} 15. f3 {[%emt 0:02:58]} f5 {[%emt 0:09:10]} 16. g5 {[%emt 0:07:08]} Ne7 {[%emt 0:06:15]} 17. Nh3 {[%emt 0:06:11]} c5 {[%emt 0:03:17]} 18. Nf4 {[%emt 0:07:24]} Nc6 {[%emt 0:12:13]} 19. dxc5 {[%emt 0:04:42]} dxc5 {[%emt 0:00:12]} 20. Nfd5 {[%emt 0:00:54]} Be6 {[%emt 0:03:45]} 21. Nf6+ {[%emt 0:06:31]} Kh8 {[%emt 0:00:34]} 22. b3 {[%emt 0:01:46]} Rad8 {[%emt 0:05:33]} 23. Bg2 {[%emt 0:05:17]} Ne5 {[%emt 0:03:59]} 24. Kc2 {[%emt 0:08:11]} f4 {[%emt 0:03:55]} 25. Nce4 {[%emt 0:01:21]} Bf5 {[%emt 0:01:41]} 26. Nh5 {[%emt 0:02:39]} Bxe4+ {[%emt 0:01:48]} 27. fxe4 {[%emt 0:00:14]} Ng4 {[%emt 0:00:04]} 28. Rxd8 {[%emt 0:01:53]} Ne3+ {[%emt 0:00:43]} 29. Kc1 {[%emt 0:01:28]} Rxd8 {[%emt 0:00:07]} 30. Nxf4 {[%emt 0:00:52]} Nd7 {[%emt 0:03:41]} 31. Re1 {[%emt 0:03:37]} Nxg2 {[%emt 0:00:21]} 32. Nxg2 {[%emt 0:00:08]} Ne5 {[%emt 0:00:02]} 33. Rd1 {[%emt 0:04:06]} Nd3+ {[%emt 0:06:17]} 34. Kb1 {[%emt 0:01:03]} Rd4 {[%emt 0:00:07]} 35. Ne3 {[%emt 0:03:56]} Nf2 {[%emt 0:01:20]} 36. Rf1 {[%emt 0:03:54]} Rd2 {[%emt 0:02:23]} 37. Nd5 {[%emt 0:03:05]} Kg7 {[%emt 0:00:21]} 38. e5 {[%emt 0:00:41]} Nd3 {[%emt 0:01:07]} 39. e6 {[%emt 0:04:21]} fxe6 {[%emt 0:00:36]} 40. Nf6 {[%emt 0:00:36]} e5 {[%emt 0:01:48]} 41. h5 {[%emt 0:00:26]} Rb2+ {[%emt 0:01:03]} 42. Ka1 {[%emt 0:00:07]} Rg2 {[%emt 0:00:30]} 43. Ne8+ {[%emt 0:00:09]} Kg8 {[%emt 0:00:13]} 44. Nf6+ {[%emt 0:00:43]} Kg7 {[%emt 0:00:08]} 45. Ne8+ {[%emt 0:01:50]} Kg8 {[%emt 0:00:04]} 46. Nf6+ {[%emt 0:02:20]} Kg7 1/2-1/2

[Event "POL-chT 2nd League Juniors 2020"]
[Site "Sypniewo"]
[Date "2020.10.25"]
[Round "4.12"]
[White "Konkol, Sandra"]
[Black "Predkiewicz, Paulina"]
[Result "1/2-1/2"]
[ECO "C45"]
[WhiteElo "1235"]
[BlackElo "1243"]
[Annotator "NA RC"]
[PlyCount "101"]
[EventDate "2020.10.23"]
[EventType "team-tourn"]
[EventCountry "POL"]
[SourceTitle "playchess.com"]
[Source "ChessBase"]
[SourceQuality "1"]
[TimeControl "5400+30"]

1. e4 {[%emt 0:00:00]} e5 {[%emt 0:00:00]} 2. Nf3 {[%emt 0:00:00]} Nc6 {[%emt 0:00:00]} 3. d4 {[%emt 0:00:07]} exd4 {[%emt 0:00:00]} 4. Nxd4 {[%emt 0:00:19]} Bc5 {[%emt 0:00:05]} 5. Be3 {[%emt 0:00:15]} Qf6 {[%emt 0:00:08]} 6. c3 {[%emt 0:00:18]} Nge7 {[%emt 0:00:09]} 7. Be2 {[%emt 0:00:24]} O-O {[%emt 0:01:09]} 8. O-O {[%emt 0:00:14]} Qg6 {[%emt 0:05:57]} 9. Nxc6 {[%emt 0:15:17]} Qxc6 {[%emt 0:00:12]} 10. Bxc5 {[%emt 0:00:06]} Qxc5 {[%emt 0:00:06]} 11. Qd4 {[%emt 0:00:18]} d6 {[%emt 0:03:37]} 12. Qxc5 {[%emt 0:00:24]} dxc5 {[%emt 0:00:05]} 13. Nd2 {[%emt 0:01:12]} b6 {[%emt 0:01:01]} 14. Nb3 {[%emt 0:01:09]} Bb7 {[%emt 0:00:28]} 15. f3 {[%emt 0:00:47]} Ng6 16. g3 {[%emt 0:01:11]} Rad8 {[%emt 0:00:54]} 17. Rad1 {[%emt 0:00:51]} Rfe8 {[%emt 0:03:13]} 18. Bb5 {[%emt 0:02:10]} Rf8 {[%emt 0:00:40]} 19. Rfe1 {[%emt 0:04:43]} Ne5 {[%emt 0:01:28]} 20. Kf2 {[%emt 0:01:28]} Rxd1 {[%emt 0:03:03]} 21. Rxd1 {[%emt 0:00:11]} f5 {[%emt 0:00:08]} 22. exf5 {[%emt 0:06:37]} Bxf3 {[%emt 0:01:37]} 23. Re1 {[%emt 0:02:09]} Rxf5 {[%emt 0:00:12]} 24. Rxe5 {[%emt 0:00:16]} Rxe5 {[%emt 0:00:10]} 25. Kxf3 {[%emt 0:00:07]} Rf5+ {[%emt 0:00:50]} 26. Kg2 {[%emt 0:01:39]} Kf8 {[%emt 0:03:08]} 27. Bd3 {[%emt 0:01:08]} Re5 {[%emt 0:00:11]} 28. Kf3 {[%emt 0:02:20]} h6 {[%emt 0:00:28]} 29. Nd2 {[%emt 0:04:39]} Re1 {[%emt 0:00:49]} 30. Nf1 {[%emt 0:04:05]} Ra1 {[%emt 0:00:53]} 31. Bc4 {[%emt 0:03:39]} Rb1 {[%emt 0:00:19]} 32. b3 {[%emt 0:00:45]} Rc1 {[%emt 0:00:48]} 33. Ke4 {[%emt 0:00:48]} Rxc3 {[%emt 0:00:32]} 34. Kd5 {[%emt 0:00:14]} Rc2 {[%emt 0:01:19]} 35. a4 {[%emt 0:01:32]} Ke8 {[%emt 0:00:31]} 36. Kc6 {[%emt 0:00:20]} Kd8 {[%emt 0:00:45]} 37. Ne3 {[%emt 0:01:03]} Rxh2 {[%emt 0:01:20]} 38. Nd5 {[%emt 0:01:16]} Rg2 {[%emt 0:00:16]} 39. Nxc7 {[%emt 0:00:07]} Rxg3 {[%emt 0:00:06]} 40. Ne6+ {[%emt 0:00:07]} Ke7 {[%emt 0:01:38]} 41. Kb7 {[%emt 0:00:55]} g5 {[%emt 0:00:36]} 42. Ng7 {[%emt 0:00:44]} Rh3 {[%emt 0:01:36]} 43. Kxa7 {[%emt 0:00:58]} g4 {[%emt 0:03:42]} 44. Be6 {[%emt 0:01:22]} h5 {[%emt 0:00:08]} 45. Nxh5 {[%emt 0:00:15]} Rxh5 {[%emt 0:00:10]} 46. Bxg4 {[%emt 0:00:04]} Rh6 {[%emt 0:00:13]} 47. Kb7 {[%emt 0:01:37]} Rg6 {[%emt 0:03:11]} 48. Bf3 {[%emt 0:00:25]} Kd7 {[%emt 0:00:17]} 49. Be4 {[%emt 0:00:45]} Rf6 {[%emt 0:01:13]} 50. Bg2 {[%emt 0:00:36]} Rh6 {[%emt 0:01:03]} 51. Bf1 1/2-1/2

[Event "POL-chT 2nd League Juniors 2020"]
[Site "Sypniewo"]
[Date "2020.10.25"]
[Round "4.14"]
[White "Kubica, Dominik"]
[Black "Niemier, Hubert"]
[Result "0-1"]
[ECO "B15"]
[WhiteElo "1577"]
[BlackElo "1771"]
[Annotator "NA RC"]
[PlyCount "88"]
[EventDate "2020.10.23"]
[EventType "team-tourn"]
[EventCountry "POL"]
[SourceTitle "playchess.com"]
[Source "ChessBase"]
[SourceQuality "1"]
[TimeControl "5400+30"]

1. e4 {[%emt 0:00:00]} c6 {[%emt 0:00:00]} 2. d4 {[%emt 0:00:00]} d5 {[%emt 0:00:00]} 3. Nc3 {[%emt 0:00:00]} dxe4 {[%emt 0:00:00]} 4. Nxe4 {[%emt 0:00:00]} Nf6 {[%emt 0:00:11]} 5. Nxf6+ {[%emt 0:00:00]} exf6 {[%emt 0:00:03]} 6. c3 {[%emt 0:00:17]} Bd6 {[%emt 0:00:08]} 7. Bd3 {[%emt 0:00:25]} O-O {[%emt 0:00:00]} 8. Qc2 {[%emt 0:00:00]} Re8+ {[%emt 0:00:00]} 9. Ne2 {[%emt 0:00:04]} h5 {[%emt 0:00:07]} 10. Be3 {[%emt 0:00:15]} Nd7 {[%emt 0:00:23]} 11. O-O-O {[%emt 0:00:47]} b5 {[%emt 0:00:36]} 12. Ng3 {[%emt 0:01:11]} Qb6 {[%emt 0:03:29]} 13. Nxh5 {[%emt 0:14:54]} a5 {[%emt 0:05:08]} 14. g4 {[%emt 0:14:14]} b4 {[%emt 0:09:17]} 15. c4 {[%emt 0:07:56]} c5 {[%emt 0:02:28]} 16. d5 {[%emt 0:02:49]} a4 {[%emt 0:08:23]} 17. Qd2 {[%emt 0:06:23]} Ne5 {[%emt 0:01:19]} 18. h3 {[%emt 0:04:20]} Nf3 {[%emt 0:14:30]} 19. Qe2 {[%emt 0:04:43]} Nd4 {[%emt 0:03:39]} 20. Qf1 {[%emt 0:01:21]} b3 {[%emt 0:13:53]} 21. a3 {[%emt 0:05:42]} Rb8 {[%emt 0:05:01]} 22. g5 {[%emt 0:17:07]} f5 {[%emt 0:00:57]} 23. Nf6+ {[%emt 0:04:35]} gxf6 {[%emt 0:02:50]} 24. gxf6 {[%emt 0:00:13]} Kh8 {[%emt 0:01:33]} 25. Rg1 {[%emt 0:12:15]} Rg8 {[%emt 0:18:52]} 26. Rxg8+ {[%emt 0:00:48]} Kxg8 {[%emt 0:00:04]} 27. Qg2+ {[%emt 0:00:13]} Kf8 {[%emt 0:00:12]} 28. Bh6+ {[%emt 0:00:21]} Ke8 {[%emt 0:00:18]} 29. Qg8+ {[%emt 0:00:33]} Kd7 {[%emt 0:00:06]} 30. Qxf7+ {[%emt 0:00:18]} Kd8 {[%emt 0:00:06]} 31. Rg1 {[%emt 0:01:38]} Bd7 {[%emt 0:00:19]} 32. Rg8+ {[%emt 0:00:12]} Kc7 {[%emt 0:00:17]} 33. Rg7 {[%emt 0:01:25]} Rd8 {[%emt 0:00:15]} 34. Bg5 {[%emt 0:00:27]} Nf3 {[%emt 0:01:53]} 35. Qh5 {[%emt 0:00:51]} Nxg5 {[%emt 0:00:35]} 36. Qxg5 {[%emt 0:00:19]} Be5 {[%emt 0:00:51]} 37. Rf7 {[%emt 0:00:58]} Qd6 {[%emt 0:01:20]} 38. Kb1 {[%emt 0:00:46]} Rf8 {[%emt 0:00:34]} 39. Rh7 {[%emt 0:00:36]} Qxf6 {[%emt 0:00:30]} 40. Qh5 {[%emt 0:00:27]} Bxb2 {[%emt 0:00:47]} 41. Qf3 {[%emt 0:00:36]} Bxa3 {[%emt 0:01:15]} 42. d6+ {[%emt 0:00:25]} Qxd6 {[%emt 0:00:23]} 43. Bxf5 {[%emt 0:00:21]} Rxf5 {[%emt 0:00:24]} 44. Qxf5 {[%emt 0:00:18]} Qd1# {[%emt 0:00:04]} 0-1